bitfinex/quotes_SOLUSD_20220228
["timestamp","ask_amount","ask_price","bid_price","bid_amount"]
[1646051827158,4.975e-05,91.68,91.605,2.27552921]
[1646051827360,4.975e-05,91.68,91.62,123.8]
[1646051827758,4.975e-05,91.68,91.62,13.1]
[1646051828159,4.975e-05,91.68,91.589,3.03485645]
[1646051828357,4.975e-05,91.68,91.59,13.1]
[1646051828762,4.975e-05,91.68,91.59,123.8]
[1646051828959,4.975e-05,91.68,91.59,13.1]
[1646051829462,4.975e-05,91.68,91.584,4.364]
[1646051829863,110.7,91.679,91.584,4.364]
[1646051830062,110.7,91.675,91.547,22.04185532]
[1646051830262,0.95,91.631,91.485,2.44093528]
[1646051830461,110.7,91.619,91.488,10.0]
[1646051830760,110.7,91.619,91.477,2.5989036]
[1646051830761,110.7,91.617,91.48,13.1]
[1646051830961,50.75445953,91.614,91.48,13.1]
[1646051831161,110.7,91.599,91.48,13.1]
[1646051831361,110.7,91.597,91.48,13.1]
[1646051831562,1.53892204,91.596,91.48,13.1]
[1646051831961,1.53892204,91.596,91.481,113.44678921]
[1646051832364,1.53892204,91.596,91.482,2.69984409]
[1646051832661,1.53892204,91.596,91.482,5.4466333]
[1646051833262,1.53892204,91.596,91.483,2.74678921]
[1646051833462,47.1169,91.598,91.483,2.74678921]
[1646051834461,52.53881523,91.597,91.483,2.74678921]
[1646051835663,1.87164382,91.596,91.483,2.74678921]
[1646051835865,52.53881523,91.597,91.483,2.74678921]
[1646051836563,1.48490268,91.595,91.483,2.74678921]
[1646051837969,1.48490268,91.595,91.482,2.73792252]
[1646051838863,1.48490268,91.595,91.483,2.74678921]
[1646051840267,1.48490268,91.595,91.484,4.369]
[1646051840469,1.48490268,91.595,91.483,2.74678921]
[1646051841968,1.48490268,91.595,91.48,13.1]
[1646051842166,1.69178397,91.593,91.48,13.1]
[1646051842369,4.369,91.592,91.48,13.1]
[1646051842570,1.7737985,91.59,91.48,13.1]
[1646051842767,1.68182921,91.588,91.48,13.1]
[1646051843569,4.369,91.587,91.48,13.1]
[1646051843771,1.68182921,91.588,91.48,13.1]
[1646051844168,1.68182921,91.588,91.464,110.7]
[1646051844569,4.37,91.587,91.46,13.1]
[1646051844968,110.7,91.585,91.46,13.1]
[1646051845172,110.7,91.579,91.46,13.1]
[1646051845369,110.7,91.576,91.46,13.1]
[1646051845572,1.37453242,91.575,91.46,13.1]
[1646051845971,1.37453242,91.575,91.46,15.84678921]
[1646051846171,1.69253082,91.573,91.46,13.1]
[1646051846375,4.37,91.572,91.46,13.1]
[1646051846572,13.1,91.57,91.444,2.3782349]
[1646051846871,110.7,91.568,91.441,113.09376355]
[1646051847071,1.86218268,91.567,91.442,2.25069154]
[1646051847272,110.7,91.565,91.442,2.25069154]
[1646051847473,110.7,91.563,91.442,2.25069154]
[1646051847674,110.7,91.561,91.442,2.25069154]
[1646051847873,1.82362675,91.56,91.442,2.25069154]
[1646051848073,4.371,91.559,91.44,13.1]
[1646051848273,115.071,91.559,91.44,13.1]
[1646051848472,115.071,91.559,91.423,2.6100873]
[1646051848473,110.7,91.557,91.423,2.6100873]
[1646051848675,110.7,91.555,91.423,2.6100873]
[1646051848873,110.7,91.553,91.423,2.6100873]
[1646051849074,110.7,91.549,91.423,2.6100873]
[1646051849277,110.7,91.547,91.424,2.74678921]
[1646051849475,1.4660491,91.546,91.425,110.7]
[1646051849676,1.4660491,91.546,91.426,3.12046928]
[1646051849881,110.7,91.544,91.431,110.7]
[1646051850077,1.87238534,91.543,91.432,3.0338174]
[1646051850478,1.87238534,91.543,91.433,110.7]
[1646051850681,1.87238534,91.543,91.434,2.64213076]
[1646051851076,1.87238534,91.543,91.434,5.38891997]
[1646051851276,1.87238534,91.543,91.435,2.74678921]
[1646051851476,1.87238534,91.543,91.441,110.7]
[1646051851679,23.5245,91.545,91.442,2.76576309]
[1646051851877,23.5245,91.545,91.442,5.5125523]
[1646051852077,23.5245,91.545,91.442,2.76576309]
[1646051852279,23.5245,91.545,91.443,2.74678921]
[1646051852481,23.5245,91.545,91.444,4.371]
[1646051852881,23.5245,91.545,91.445,2.74678921]
[1646051853279,23.5245,91.545,91.446,4.371]
[1646051853480,23.5245,91.545,91.461,110.7]
[1646051853679,23.5245,91.545,91.462,2.97682874]
[1646051854081,23.5245,91.545,91.463,110.7]
[1646051854280,23.5245,91.545,91.464,2.48637818]
[1646051854680,23.5245,91.545,91.464,5.23316739]
[1646051854879,77.8837,91.57,91.465,2.74678921]
[1646051855080,57.88452592,91.568,91.47,123.8]
[1646051855279,57.88452592,91.568,91.471,2.77618201]
[1646051855482,57.88452592,91.568,91.471,5.52297122]
[1646051855680,23.1075,91.565,91.471,5.52297122]
[1646051855882,23.1075,91.565,91.472,2.74678921]
[1646051856686,23.1075,91.565,91.473,110.7]
[1646051856887,23.1075,91.565,91.474,3.03859314]
[1646051857287,53.47024448,91.564,91.474,3.03859314]
[1646051858386,53.47024448,91.564,91.471,2.79491542]
[1646051858586,53.47024448,91.564,91.47,13.1]
[1646051858789,53.47024448,91.564,91.471,2.67829814]
[1646051859087,53.47024448,91.564,91.471,110.7]
[1646051859288,53.47024448,91.564,91.472,2.8726551]
[1646051860692,53.47024448,91.564,91.473,2.74678921]
[1646051861091,23.1075,91.565,91.473,2.74678921]
[1646051862093,58.01121818,91.564,91.473,2.74678921]
[1646051864518,23.1075,91.565,91.473,2.74678921]
[1646051865516,23.1075,91.565,91.474,110.7]
[1646051865719,23.1075,91.565,91.475,2.78817694]
[1646051865916,23.1075,91.565,91.476,110.7]
[1646051866118,23.1075,91.565,91.491,110.7]
[1646051866316,23.1075,91.565,91.492,2.8625561]
[1646051866717,23.1075,91.565,91.493,2.74678921]
[1646051867116,23.1075,91.565,91.492,2.8625561]
[1646051867518,23.1075,91.565,91.49,13.1]
[1646051869523,109.3,91.564,91.49,13.1]
[1646051869722,1.54274759,91.563,91.463,4.37]
[1646051877930,23.1075,91.565,91.463,4.37]
[1646051879431,23.1075,91.565,91.464,109.3]
[1646051879631,23.1075,91.565,91.465,2.97418842]
[1646051879832,23.1075,91.565,91.471,109.3]
[1646051880032,23.1075,91.565,91.472,2.86352196]
[1646051881040,23.1075,91.565,91.473,2.74678921]
[1646051881739,1.65542015,91.595,91.474,2.52216438]
[1646051881937,78.3743,91.619,91.477,2.50898774]
[1646051881938,58.51688614,91.594,91.477,2.50898774]
[1646051882138,1.57028925,91.593,91.49,13.1]
[1646051882743,1.54255251,91.592,91.49,13.1]
[1646051883043,1.6344716,91.59,91.49,13.1]
[1646051883243,109.3,91.589,91.49,13.1]
[1646051883444,1.73190788,91.588,91.49,13.1]
[1646051883646,109.3,91.587,91.49,13.1]
[1646051883843,1.82600149,91.586,91.49,13.1]
[1646051884443,109.3,91.585,91.49,13.1]
[1646051884644,1.36144689,91.584,91.49,13.1]
[1646051885444,1.36144689,91.584,91.48,125.06]
[1646051885644,1.36144689,91.584,91.481,2.53513879]
[1646051887850,1.36144689,91.584,91.452,2.3853884]
[1646051888049,109.3,91.582,91.46,15.76]
[1646051888253,109.3,91.579,91.464,6.0]
[1646051888451,1.44438114,91.578,91.464,6.0]
[1646051888851,1.69885511,91.575,91.464,6.0]
[1646051890268,4.37,91.574,91.46,15.76]
[1646051890469,109.3,91.569,91.46,15.76]
[1646051890669,1.36568331,91.568,91.447,24.8601]
[1646051891169,1.36568331,91.568,91.45,15.76]
[1646051892270,1.36568331,91.568,91.451,109.3]
[1646051892571,1.36568331,91.568,91.46,15.76]
[1646051893872,1.36568331,91.568,91.461,109.3]
[1646051894071,1.36568331,91.568,91.46,15.76]
[1646051894274,1.36568331,91.568,91.451,109.3]
[1646051894472,4.37,91.567,91.447,24.8601]
[1646051894673,154.27721412,91.566,91.45,15.76]
[1646051894973,1.53687838,91.565,91.45,15.76]
[1646051895274,1.70601894,91.562,91.463,3.87]
[1646051896972,1.70601894,91.562,91.464,2.74678921]
[1646051897472,1.70601894,91.562,91.463,3.87]
[1646051898678,109.3,91.559,91.463,3.87]
[1646051898878,1.35922026,91.558,91.463,3.87]
[1646051899077,115.38593268,91.557,91.463,3.87]
[1646051899277,1.83715098,91.556,91.463,3.87]
[1646051899679,109.3,91.554,91.463,3.87]
[1646051899880,109.3,91.552,91.463,3.87]
[1646051900080,109.3,91.55,91.463,3.87]
[1646051900281,1.39228778,91.549,91.463,3.87]
[1646051906292,109.3,91.548,91.463,3.87]
[1646051906489,109.3,91.546,91.463,3.87]
[1646051906690,109.3,91.544,91.463,3.87]
[1646051906887,109.3,91.539,91.463,3.87]
[1646051907087,1.74641604,91.538,91.463,3.87]
[1646051907288,109.3,91.536,91.463,3.87]
[1646051907489,1.64568183,91.535,91.408,47.6603]
[1646051907688,109.3,91.519,91.408,47.6603]
[1646051907887,109.3,91.515,91.408,47.6603]
[1646051908087,1.54003336,91.514,91.408,47.6603]
[1646051908288,109.3,91.509,91.408,47.6603]
[1646051908488,1.80614754,91.508,91.408,47.6603]
[1646051909092,1.86290317,91.505,91.408,47.6603]
[1646051910390,109.3,91.499,91.391,2.80442024]
[1646051910789,109.3,91.497,91.392,2.86254326]
[1646051910989,1.57438757,91.496,91.393,2.8345374]
[1646051911191,109.3,91.495,91.397,2.69157368]
[1646051911391,109.3,91.495,91.382,2.28856455]
[1646051911592,1.65383378,91.494,91.382,2.28856455]
[1646051912593,1.65383378,91.494,91.383,28.69975206]
[1646051912791,1.65383378,91.494,91.384,2.4209828]
[1646051912994,1.65383378,91.494,91.384,5.16777201]
[1646051913193,1.65383378,91.494,91.385,25.95296285]
[1646051913392,1.65383378,91.494,91.39,15.76]
[1646051913593,1.65383378,91.494,91.391,2.89605931]
[1646051913993,1.65383378,91.494,91.392,25.95296285]
[1646051914193,1.65383378,91.494,91.393,2.65798621]
[1646051914396,1.65383378,91.494,91.37,15.76]
[1646051914594,109.3,91.489,91.367,2.74678921]
[1646051914795,109.3,91.487,91.364,2.83269734]
[1646051915096,109.3,91.483,91.364,2.83269734]
[1646051915295,1.39677284,91.482,91.367,2.33518326]
[1646051915495,1.78355057,91.48,91.367,2.33518326]
[1646051915698,1.78355057,91.48,91.37,2.91311558]
[1646051915897,4.375,91.479,91.37,2.91311558]
[1646051916098,4.375,91.479,91.371,135.24354824]
[1646051916323,4.375,91.479,91.372,2.54790956]
[1646051916523,4.375,91.479,91.372,28.4914578]
[1646051916722,1.78355057,91.48,91.373,3.02302231]
[1646051916923,1.78355057,91.48,91.373,28.96657055]
[1646051917122,1.78355057,91.48,91.374,2.97840715]
[1646051917321,1.78355057,91.48,91.374,28.92195539]
[1646051917521,1.78355057,91.48,91.375,2.75262988]
[1646051917721,1.78355057,91.48,91.361,24.3116]
[1646051917922,4.375,91.479,91.362,2.67076496]
[1646051918122,113.675,91.479,91.362,25.91149112]
[1646051918323,1.41037801,91.478,91.363,3.10485845]
[1646051918722,4.375,91.477,91.362,25.91149112]
[1646051918921,4.375,91.477,91.361,24.3116]
[1646051918922,4.375,91.477,91.363,2.77974991]
[1646051919126,16.74186217,91.476,91.342,2.25672785]
[1646051919326,0.95,91.461,91.316,2.31704604]
[1646051919625,0.95,91.461,91.301,109.3]
[1646051919626,109.3,91.449,91.301,109.3]
[1646051919821,109.3,91.447,91.301,109.3]
[1646051920021,109.3,91.445,91.301,109.3]
[1646051920224,109.3,91.429,91.301,109.3]
[1646051920421,15.76,91.42,91.301,109.3]
[1646051920622,109.3,91.419,91.301,109.3]
[1646051920825,15.76,91.42,91.301,109.3]
[1646051920826,109.3,91.417,91.301,109.3]
[1646051921023,109.3,91.415,91.301,109.3]
[1646051921225,109.3,91.413,91.3,15.76]
[1646051921424,109.3,91.411,91.3,15.76]
[1646051921626,109.3,91.409,91.3,15.76]
[1646051921823,1.57677656,91.408,91.3,15.76]
[1646051922623,109.3,91.407,91.3,15.76]
[1646051922823,1.92812091,91.406,91.3,15.76]
[1646051923024,1.92812091,91.406,91.293,63.6553]
[1646051923427,4.378,91.405,91.293,63.6553]
[1646051923625,4.378,91.405,91.294,109.3]
[1646051923826,1.92812091,91.406,91.294,109.3]
[1646051924225,1.92812091,91.406,91.295,5.04896615]
[1646051924426,23.3687,91.412,91.301,109.3]
[1646051924627,23.3687,91.412,91.302,2.52441575]
[1646051925028,23.3687,91.412,91.302,5.27120496]
[1646051925226,23.3687,91.412,91.303,2.74678921]
[1646051925926,1.85570436,91.411,91.303,2.74678921]
[1646051926326,111.15570436,91.411,91.303,2.74678921]
[1646051926528,1.86137522,91.41,91.303,2.74678921]
[1646051928227,10.84137522,91.41,91.303,2.74678921]
[1646051928427,113.678,91.409,91.293,247.5788]
[1646051928626,1.55657592,91.408,91.293,247.5788]
[1646051928829,4.378,91.407,91.293,247.5788]
[1646051929930,4.378,91.407,91.294,112.04678921]
[1646051930128,1.55657592,91.408,91.294,112.04678921]
[1646051930327,1.55657592,91.408,91.295,2.74678921]
[1646051930828,1.55657592,91.408,91.301,109.3]
[1646051931230,1.55657592,91.408,91.302,2.74678921]
[1646051932129,23.3687,91.412,91.302,4.9621199]
[1646051932329,23.3687,91.412,91.303,4.378]
[1646051932532,15.76,91.45,91.304,109.3]
[1646051932733,24.99371,91.442,91.306,109.3]
[1646051933028,24.99371,91.442,91.321,109.3]
[1646051933228,24.99371,91.442,91.323,109.3]
[1646051933428,24.99371,91.442,91.325,109.3]
[1646051933627,24.99371,91.442,91.341,109.3]
[1646051934232,24.99371,91.442,91.342,2.74678921]
[1646051934429,23.1017,91.442,91.343,4.377]
[1646051934630,1.74727142,91.441,91.342,2.74678921]
[1646051934830,23.1017,91.442,91.344,2.74678921]
[1646051935030,23.1017,91.442,91.345,109.3]
[1646051935232,24.66953256,91.464,91.347,109.3]
[1646051935430,1.8874751,91.463,91.361,109.3]
[1646051936031,1.8874751,91.463,91.362,2.74678921]
[1646051936431,22.7016,91.464,91.363,134.21397999]
[1646051936632,22.7016,91.464,91.365,109.3]
[1646051936832,22.7016,91.464,91.367,109.3]
[1646051937030,22.7016,91.464,91.381,109.3]
[1646051937230,1.59090753,91.477,91.381,109.3]
[1646051937431,53.67318622,91.528,91.383,109.3]
[1646051937632,1.49142442,91.527,91.385,109.3]
[1646051937833,110.79142442,91.527,91.401,109.3]
[1646051938132,1.76926112,91.526,91.4,15.76]
[1646051938332,109.3,91.524,91.4,15.76]
[1646051938531,109.3,91.519,91.401,109.3]
[1646051938732,110.75005645,91.519,91.401,109.3]
[1646051938931,1.8051274,91.518,91.401,109.3]
[1646051939135,4.373,91.517,91.401,109.3]
[1646051939334,109.3,91.515,91.401,109.3]
[1646051939534,1.82219327,91.514,91.401,109.3]
[1646051940136,1.82219327,91.514,91.4,115.76]
[1646051940937,4.373,91.513,91.4,115.76]
[1646051941537,4.373,91.513,91.401,109.3]
[1646051942136,4.373,91.513,91.4,115.76]
[1646051942338,4.373,91.513,91.401,109.3]
[1646051942537,4.373,91.513,91.4,115.76]
[1646051944037,1.82219327,91.514,91.4,115.76]
[1646051945541,4.373,91.513,91.4,115.76]
[1646051945939,109.3,91.507,91.4,115.76]
[1646051946141,1.70620139,91.506,91.4,115.76]
[1646051946541,4.373,91.505,91.4,115.76]
[1646051946742,1.54510966,91.502,91.4,115.76]
[1646051948544,1.54510966,91.502,91.401,109.3]
[1646051948746,1.54510966,91.502,91.401,118.03678921]
[1646051948945,1.54510966,91.502,91.402,2.74678921]
[1646051949744,1.54510966,91.502,91.403,113.673]
[1646051950146,1.54510966,91.502,91.404,2.74678921]
[1646051950345,1.54510966,91.502,91.405,4.373]
[1646051950749,1.54510966,91.502,91.41,15.76]
[1646051954352,1.54510966,91.502,91.406,2.74678921]
[1646051954550,125.06,91.5,91.386,2.74678921]
[1646051954749,109.3,91.498,91.386,2.74678921]
[1646051954949,1.84314749,91.495,91.368,23.0703]
[1646051955152,109.3,91.492,91.36,15.76]
[1646051955351,4.374,91.491,91.332,46.5284]
[1646051955551,109.3,91.477,91.35,15.76]
[1646051955756,1.65200479,91.474,91.34,15.76]
[1646051955953,1.5907143,91.468,91.34,15.76]
[1646051956251,4.374,91.467,91.341,109.3]
[1646051956455,1.5907143,91.468,91.351,109.3]
[1646051957052,4.374,91.467,91.352,132.3746]
[1646051957473,1.5907143,91.468,91.363,2.74678921]
[1646051958258,1.5907143,91.468,91.364,48.8978]
[1646051958856,1.5907143,91.468,91.365,109.3]
[1646051959055,1.5907143,91.468,91.37,15.76]
[1646051959257,1.93519179,91.475,91.37,15.76]
[1646051959856,1.79974783,91.474,91.37,15.76]
[1646051961859,1.79974783,91.474,91.364,48.8978]
[1646051963661,1.44986826,91.468,91.364,48.8978]
[1646051963861,4.374,91.467,91.34,15.76]
[1646051964061,109.3,91.466,91.326,4.374]
[1646051964262,109.3,91.463,91.326,4.374]
[1646051964461,54.26866584,91.464,91.326,4.374]
[1646051964462,109.3,91.447,91.326,4.374]
[1646051964661,111.03495835,91.439,91.326,4.374]
[1646051964861,1.95039497,91.438,91.326,4.374]
[1646051965078,1.95039497,91.438,91.326,113.674]
[1646051965279,1.82105127,91.447,91.328,109.3]
[1646051965479,1.82105127,91.447,91.331,109.3]
[1646051965682,1.82105127,91.447,91.33,15.76]
[1646051966381,1.4797081,91.446,91.33,15.76]
[1646051966881,1.4797081,91.446,91.332,109.3]
[1646051967481,1.4797081,91.446,91.331,109.3]
[1646051967883,1.4797081,91.446,91.341,109.3]
[1646051968281,1.4797081,91.446,91.342,156.3303]
[1646051968687,1.4797081,91.446,91.342,47.0303]
[1646051970682,1.4797081,91.446,91.342,156.3303]
[1646051970884,1.4797081,91.446,91.342,47.0303]
[1646051972083,1.4797081,91.446,91.4,96.0]
[1646051976498,44.23195558,91.448,91.4,96.0]
[1646051977198,1.72392278,91.447,91.4,96.0]
[1646051977399,1.87308465,91.446,91.4,96.0]
[1646051980105,4.375,91.445,91.4,96.0]
[1646051980400,1.87308465,91.446,91.4,96.0]
[1646051985304,1.87308465,91.446,91.35,96.0]
[1646051985504,111.25951492,91.444,91.35,96.0]
[1646051985704,1.87262937,91.443,91.35,96.0]
[1646051993517,109.3,91.439,91.35,96.0]
[1646051993718,1.72606261,91.438,91.35,96.0]
[1646051994219,1.72606261,91.438,91.342,47.0303]
[1646051997319,1.72606261,91.438,91.343,109.3]
[1646051997522,44.23195558,91.448,91.344,2.46631211]
[1646051997720,44.23195558,91.448,91.351,109.3]
[1646051997922,44.23195558,91.448,91.352,2.18953283]
[1646051998119,44.23195558,91.448,91.353,109.3]
[1646051998322,44.23195558,91.448,91.354,2.59125833]
[1646051998521,1.64648633,91.489,91.355,109.3]
[1646051998743,1.64648633,91.489,91.371,109.3]
[1646051998923,1.64648633,91.489,91.372,2.16674495]
[1646051999327,1.64648633,91.489,91.373,112.04678921]
[1646051999623,53.26658746,91.46,91.374,2.51444183]
[1646051999824,53.26658746,91.46,91.373,2.74678921]
[1646052001624,53.26658746,91.46,91.37,15.76]
[1646052002226,1.92466777,91.458,91.37,15.76]
[1646052003628,1.79314908,91.456,91.351,16.3841]
[1646052004629,1.79314908,91.456,91.352,109.3]
[1646052004828,1.79314908,91.456,91.351,16.3841]
[1646052006262,4.376,91.455,91.351,16.3841]
[1646052006664,109.3,91.449,91.351,16.3841]
[1646052006860,1.47470886,91.448,91.338,2.74678921]
[1646052007059,109.3,91.447,91.338,2.74678921]
[1646052007261,109.3,91.445,91.338,2.74678921]
[1646052007460,109.3,91.443,91.338,2.74678921]
[1646052007659,1.57697014,91.442,91.338,2.74678921]
[1646052010863,1.57697014,91.442,91.343,109.3]
[1646052011062,1.57697014,91.442,91.338,2.74678921]
[1646052011662,1.60280746,91.44,91.338,2.74678921]
[1646052012064,4.376,91.439,91.338,2.74678921]
[1646052012264,113.676,91.439,91.331,23.1166]
[1646052012465,109.3,91.437,91.331,23.1166]
[1646052012665,109.3,91.435,91.331,23.1166]
[1646052012865,109.3,91.433,91.331,23.1166]
[1646052013168,1.96950527,91.429,91.331,23.1166]
[1646052013365,1.44919166,91.426,91.331,23.1166]
[1646052013564,109.3,91.425,91.331,23.1166]
[1646052013764,1.74687164,91.424,91.331,23.1166]
[1646052013965,1.59169494,91.422,91.331,23.1166]
[1646052014366,110.89169494,91.422,91.331,23.1166]
[1646052014568,1.54584817,91.421,91.331,23.1166]
[1646052016367,7.64584817,91.421,91.331,23.1166]
[1646052016766,1.50779417,91.419,91.331,23.1166]
[1646052016969,4.377,91.418,91.331,23.1166]
[1646052017371,1.91420659,91.417,91.331,23.1166]
[1646052017674,1.68533894,91.414,91.331,23.1166]
[1646052018375,1.78077879,91.408,91.331,23.1166]
[1646052019170,4.377,91.407,91.308,23.8265]
[1646052019373,4.377,91.407,91.309,22.6086]
[1646052020373,4.377,91.407,91.3,96.0]
[1646052021175,134.76513515,91.406,91.3,96.0]
[1646052021384,109.3,91.404,91.3,96.0]
[1646052021676,109.3,91.38,91.3,96.0]
[1646052021874,109.3,91.367,91.3,96.0]
[1646052022074,109.3,91.365,91.3,96.0]
[1646052022374,1.54850013,91.348,91.3,96.0]
[1646052022674,109.3,91.337,91.3,96.0]
[1646052022874,90.0,91.336,91.22,15.76]
[1646052023074,109.3,91.33,91.221,4.382]
[1646052023276,109.3,91.32,91.201,45.9739]
[1646052023575,109.3,91.318,91.201,45.9739]
[1646052023774,109.3,91.309,91.201,45.9739]
[1646052023975,109.3,91.299,91.177,23.0177]
[1646052024176,109.3,91.297,91.177,23.0177]
[1646052024376,109.3,91.295,91.177,23.0177]
[1646052024677,1.60192024,91.292,91.177,23.0177]
[1646052024876,109.3,91.279,91.178,47.0926]
[1646052025085,109.3,91.277,91.178,47.0926]
[1646052025282,44.68966061,91.278,91.179,109.3]
[1646052025483,44.68966061,91.278,91.18,4.384]
[1646052025687,44.68966061,91.278,91.181,109.3]
[1646052025882,44.68966061,91.278,91.183,109.3]
[1646052026084,44.68966061,91.278,91.184,2.28674481]
[1646052026281,41.98966061,91.278,91.184,2.28674481]
[1646052026482,4.384,91.314,91.2,2.74678921]
[1646052026683,15.76,91.33,91.202,109.3]
[1646052026883,1.59541849,91.329,91.204,109.3]
[1646052027183,1.59541849,91.329,91.206,109.3]
[1646052027383,109.3,91.327,91.21,15.76]
[1646052027686,109.3,91.327,91.201,24.3857]
[1646052027687,1.80509892,91.326,91.201,24.3857]
[1646052027884,113.682,91.325,91.202,4.382]
[1646052028083,1.94095313,91.324,91.202,4.382]
[1646052028283,109.3,91.309,91.201,24.3857]
[1646052028484,109.3,91.307,91.201,24.3857]
[1646052028686,1.82870578,91.306,91.201,24.3857]
[1646052029084,109.3,91.304,91.201,24.3857]
[1646052029285,1.90117761,91.303,91.201,24.3857]
[1646052029885,1.90117761,91.303,91.202,109.3]
[1646052030085,57.54570255,91.308,91.203,2.28413913]
[1646052030285,57.54570255,91.308,91.204,4.383]
[1646052030686,1.77970465,91.307,91.202,109.3]
[1646052031085,57.54570255,91.308,91.202,112.101929]
[1646052031486,1.77721865,91.307,91.202,109.3]
[1646052031686,111.07721865,91.307,91.201,24.3857]
[1646052031887,1.89477044,91.306,91.201,24.3857]
[1646052032705,1.89477044,91.306,91.202,113.683]
[1646052033101,1.89477044,91.306,91.202,109.3]
[1646052033401,57.54570255,91.308,91.204,109.3]
[1646052033601,57.54570255,91.308,91.205,4.383]
[1646052033807,109.3,91.307,91.205,4.383]
[1646052034002,57.54570255,91.308,91.204,109.3]
[1646052034202,1.6238697,91.307,91.201,24.3857]
[1646052034605,110.9238697,91.307,91.201,24.3857]
[1646052034804,1.54064078,91.306,91.201,24.3857]
[1646052035505,1.54064078,91.306,91.202,109.3]
[1646052035906,33.46141328,91.306,91.202,109.3]
[1646052036105,1.71774058,91.305,91.201,24.3857]
[1646052036306,1.71774058,91.305,91.202,109.3]
[1646052036506,1.71774058,91.305,91.201,24.3857]
[1646052037505,1.71774058,91.305,91.202,109.3]
[1646052038304,109.3,91.317,91.202,109.3]
[1646052038305,4.383,91.324,91.203,9.52900951]
[1646052038505,1.83870441,91.343,91.205,2.31577078]
[1646052038705,1.83870441,91.343,91.221,109.3]
[1646052038907,1.74770985,91.358,91.231,109.3]
[1646052039105,1.74770985,91.358,91.232,2.21972069]
[1646052039306,51.53344001,91.357,91.232,2.21972069]
[1646052039505,15.76,91.39,91.232,2.21972069]
[1646052039506,6.09529301,91.388,91.234,109.3]
[1646052039705,1.71429301,91.388,91.241,109.3]
[1646052039904,4.38,91.387,91.251,109.3]
[1646052040107,115.34952298,91.398,91.253,112.13553365]
[1646052040311,1.92998525,91.397,91.255,109.3]
[1646052040508,115.34812251,91.396,91.256,2.69288281]
[1646052040713,1.94563669,91.395,91.271,109.3]
[1646052040914,4.378,91.394,91.273,109.3]
[1646052041615,4.378,91.394,91.274,132.21284833]
[1646052042013,4.378,91.394,91.275,22.91284833]
[1646052042216,109.3,91.389,91.275,2.74678921]
[1646052042419,109.3,91.387,91.276,2.74678921]
[1646052042615,109.3,91.385,91.276,2.74678921]
[1646052042918,53.43771545,91.383,91.276,2.74678921]
[1646052043114,1.4578223,91.381,91.276,2.74678921]
[1646052043315,1.4578223,91.381,91.276,19.19888921]
[1646052043516,1.4578223,91.381,91.277,109.3]
[1646052043815,53.43771545,91.383,91.291,109.3]
[1646052044414,53.43771545,91.383,91.293,109.3]
[1646052044814,53.43771545,91.383,91.295,109.3]
[1646052045216,53.43771545,91.383,91.301,109.3]
[1646052045616,53.43771545,91.383,91.302,2.74678921]
[1646052046019,53.43771545,91.383,91.303,6.0]
[1646052046420,53.43771545,91.383,91.304,2.74678921]
[1646052047219,1.96421508,91.413,91.304,2.74678921]
[1646052047420,1.96421508,91.413,91.306,109.3]
[1646052047918,1.96421508,91.413,91.308,109.3]
[1646052048118,51.43806535,91.412,91.308,109.3]
[1646052048420,1.9868845,91.411,91.311,109.3]
[1646052049223,4.378,91.41,91.309,112.04678921]
[1646052049621,6.3648845,91.411,91.312,2.74678921]
[1646052050020,1.9868845,91.411,91.312,2.74678921]
[1646052050921,111.2868845,91.411,91.312,2.74678921]